[Event "SVK ECo-C Extraliga 2021-22"]
[Site "Slovakia"]
[Date "2022.05.08"]
[Round "8.7"]
[White "Macko, Michal"]
[Black "Kopera, Michal"]
[Result "0-1"]
[ECO "A15"]
[WhiteElo "2161"]
[BlackElo "2127"]
[Annotator "TA"]
[PlyCount "126"]
[EventDate "2021.10.21"]
[EventType "team-tourn"]
[EventCountry "SVK"]
[SourceTitle "playchess.com"]
[Source "ChessBase"]
[SourceQuality "1"]
[TimeControl "40/5400+30:1800+30"]

{[%evp 13,126,22,22,11,55,60,88,85,74,83,77,83,84,74,81,77,75,74,68,66,56,29,87,62,57,65,64,22,29,24,33,29,47,15,33,33,69,33,71,72,128,38,132,129,153,145,148,131,127,12,37,80,100,-274,-257,-29987,-29988,-29988,-29989,-29997,-29994,-29994,-29990,-29990,-29991,-29991,-668,-657,-653,-605,-610,-612,-572,-728,-638,-638,-638,-638,-612,-587,-558,-558,-558,-550,-550,-550,-547,-1197,-948,-5984,-6094,-3469,-2526,-29949,-29950,-12275,-2722,-29969,-29971,-29953,-4605,-29981,-29982,-29987,-29982,-29983,-29983,-29985,-29986,-29987,-29984,-29984,-29985,-29984,-29985]} 1. c4 {[%emt 0:00:06]} Nf6 {[%emt 0:01:23]} 2. g3 {[%emt 0:00:07]} d5 {[%emt 0:01:24]} 3. cxd5 {[%emt 0:00:32]} Nxd5 {[%emt 0:00:41]} 4. Bg2 {[%emt 0:00:16]} e5 {[%emt 0:10:20]} 5. Nc3 {[%emt 0:00:42]} Nxc3 {[%emt 0:06:10]} 6. bxc3 {[%emt 0:00:20]} Bc5 {[%emt 0:01:13]} 7. Nf3 {[%emt 0:13:48]} Nc6 {[%emt 0:02:02]} 8. O-O {[%emt 0:00:12][%cal Of3e5] A29: English Opening: Four Knights Variation with 4 g3.} e4 {[%emt 0:08:28]} 9. Ne1 {[%emt 0:00:31]} Bf5 {[%emt 0:00:43]} 10. Qa4 {[%emt 0:03:15] And now Qb5 would win. White is better.} O-O {[%emt 0:23:38]} 11. Bxe4 {[%emt 0:00:54]} Bxe4 {[%emt 0:00:19]} 12. Qxe4 {[%emt 0:00:05]} Re8 {[%emt 0:00:55]} 13. Qc4 {[%emt 0:00:11]} Bb6 {[%emt 0:01:04]} 14. d4 {[%emt 0:06:36]} Na5 {[%emt 0:03:16]} 15. Qd3 {[%emt 0:01:00]} Qd5 {[%emt 0:02:32]} 16. Nc2 {[%emt 0:03:09]} Rad8 {[%emt 0:01:08] [#]} 17. e3 $146 {[%emt 0:06:33]} ({Predecessor:} 17. Ne3 Qh5 18. Bb2 c5 19. Rfe1 a6 20. Rad1 cxd4 21. cxd4 Nc6 22. Nc2 Ba5 23. Bc3 Ne5 24. Qd2 Nc4 25. Qd3 Ne5 {½-½ (25) Hibbitt,A-Brown,A (2087) Paignton 2013}) 17... Nc6 {[%emt 0:06:46]} (17... c5 $11 {remains equal.}) 18. Nb4 {[%emt 0:04:18]} Nxb4 {[%emt 0:00:19]} 19. cxb4 {[%emt 0:00:05]} h5 {[%emt 0:01:15][%cal Oh5h4]} 20. Rd1 {[%emt 0:03:11]} h4 {[%emt 0:01:36]} 21. Qf1 {[%emt 0:00:26]} ({Wrong is} 21. gxh4 $2 Rd6 22. Kf1 Bxd4 $1 $19 {[%mdl 512]}) 21... hxg3 {[%emt 0:06:06]} 22. hxg3 {[%emt 0:01:29]} c6 {[%emt 0:00:08] Inhibits b5.} 23. Qg2 {[%emt 0:03:16]} Qf5 {[%emt 0:03:21]} 24. Bd2 {[%emt 0:03:44]} Qc2 {[%emt 0:01:36]} 25. Be1 {[%emt 0:00:48]} (25. a4 $5 {[%cal Ra4a5]}) 25... Re6 {[%emt 0:00:43]} 26. a4 {[%emt 0:03:39]} a6 {[%emt 0:02:25] Prevents b5.} ({Black should play} 26... Rh6) 27. a5 {[%emt 0:00:22]} (27. Rdc1 $16 Qb2 28. b5 axb5 29. axb5) 27... Ba7 {[%emt 0:01:06]} (27... Bc7 $14) 28. d5 $16 {[%emt 0:01:01]} Red6 {[%emt 0:03:28][%cal Rd6d5]} 29. Rdc1 {[%emt 0:00:16]} Qb2 {[%emt 0:02:00]} 30. dxc6 {[%emt 0:05:47]} Rxc6 {[%emt 0:00:29]} 31. Rcb1 {[%emt 0:01:10]} ({But not} 31. Rxc6 $2 bxc6 32. Bc3 (32. Ra4 $2 Qc1 $19) 32... Qxc3 $19) ({White has to play} 31. Rd1 $16 Qf6 32. Qe4) 31... Qe2 $11 {[%emt 0:01:16]} 32. Qe4 {[%emt 0:04:20]} Rh6 {[%emt 0:06:02] [#] aiming for ...Bb8.} 33. Qxb7 {[%emt 0:02:51][%mdl 8192] Loses the game.} (33. Rc1 $1 $16 {stays on course.}) 33... Bxe3 $1 $19 {[%emt 0:00:29]} 34. Rb3 $2 {[%emt 0:01:16] [#]} (34. b5 $19 Rf6 35. Qg2) 34... Bxf2+ $1 {[%emt 0:00:50][%mdl 512]} 35. Bxf2 {[%emt 0:02:07]} Rd1+ {[%emt 0:00:03]} 36. Kg2 {[%emt 0:01:07]} Qf1+ {[%emt 0:00:04]} 37. Kf3 {[%emt 0:00:07]} Qh1+ {[%emt 0:02:12]} 38. Ke2 {[%emt 0:00:29]} Re6+ {[%emt 0:00:19]} 39. Re3 {[%emt 0:00:20]} Rxe3+ {[%emt 0:01:10]} (39... Qf1+ $142 40. Kf3 Rxe3+ 41. Kxe3 Rd3+ 42. Ke4 Qe2+ 43. Kf5 Qxf2+ 44. Ke5 Qd4+ 45. Kf5 g6+ 46. Kg5 Qe5+ 47. Kh6 Qh5#) 40. Kxe3 {[%emt 0:00:11]} Qxb7 {[%emt 0:00:39]} 41. Rxd1 {[%emt 0:30:05]} Qxb4 {[%emt 0:30:12][%mdl 4096] Endgame KQ-KRB} 42. Be1 {[%emt 0:01:10]} Qc4 {[%emt 0:00:00]} 43. Rd3 {[%emt 0:00:00]} f5 {[%emt 0:00:00]} 44. Rd4 {[%emt 0:00:00]} Qe6+ {[%emt 0:00:00]} 45. Kf2 {[%emt 0:00:00]} Kf7 {[%emt 0:00:00]} 46. Bd2 {[%emt 0:00:00]} Qe5 {[%emt 0:00:00]} 47. Rd3 {[%emt 0:00:00]} Qc5+ {[%emt 0:00:00]} 48. Kf3 {[%emt 0:00:00]} Qc4 {[%emt 0:00:00]} 49. Ke2 {[%emt 0:00:00]} g5 {[%emt 0:00:00][%cal Bg7g5,Bg5f4][%mdl 32] Hoping for ...f4.} 50. Bc3 {[%emt 0:00:00]} f4 {[%emt 0:00:00] White must now prevent ...fxg3.} 51. gxf4 {[%emt 0:00:00]} gxf4 {[%emt 0:00:00][%cal Of4f3]} 52. Kd2 {[%emt 0:00:00]} Qa2+ {[%emt 0:00:00]} 53. Kd1 {[%emt 0:00:00]} Ke6 {[%emt 0:00:00]} 54. Be1 {[%emt 0:00:00]} Ke5 {[%emt 0:00:00]} 55. Rd2 {[%emt 0:00:00]} Qa1+ {[%emt 0:00:00]} 56. Ke2 {[%emt 0:00:00]} Qxa5 {[%emt 0:00:00] ( -> ...Qb5+)} 57. Bf2 {[%emt 0:00:00]} Qb5+ {[%emt 0:00:00] Black mates.} 58. Kd1 {[%emt 0:00:00]} a5 {[%emt 0:00:00][%cal Ba6a5,Ba5a4][%mdl 32]} 59. Kc1 {[%emt 0:00:00]} Ke4 {[%emt 0:00:00]} 60. Rc2 {[%emt 0:00:43]} a4 {[%emt 0:00:00]} 61. Bc5 {[%emt 0:00:21]} Qb3 {[%emt 0:00:00]} 62. Rb2 {[%emt 0:00:22]} Qc3+ {[%emt 0:00:00]} 63. Rc2 {[%emt 0:00:06]} Qd3 {[%emt 0:00:49] Weighted Error Value: White=0.94/Black=0.33} 0-1

[Event "SVK ECo-C Extraliga 2021-22"]
[Site "Slovakia"]
[Date "2022.05.09"]
[Round "8.7"]
[White "Kardis, Benjamin"]
[Black "Csonka Attila Istvan"]
[Result "0-1"]
[ECO "D01"]
[WhiteElo "2005"]
[BlackElo "2320"]
[Annotator "TA"]
[PlyCount "60"]
[EventDate "2021.10.21"]
[EventType "team-tourn"]
[EventCountry "SVK"]
[SourceTitle "playchess.com"]
[Source "ChessBase"]
[SourceQuality "1"]
[TimeControl "40/5400+30:1800+30"]

{[%evp 9,60,-38,-37,-100,-106,-126,-110,-168,-127,-124,-81,-93,-88,-84,-75,-117,-89,-124,-131,-147,-159,-155,-135,-197,-158,-165,-161,-261,-241,-283,-275,-268,-270,-309,-320,-346,-342,-343,-345,-380,-399,-396,-365,-639,-623,-633,-615,-664,-620,-1995,-414,-397,-327]} 1. d4 {[%emt 0:00:10]} Nf6 {[%emt 0:00:07]} 2. Nc3 {[%emt 0:00:03]} d5 {[%emt 0:00:28]} 3. Bg5 {[%emt 0:00:07]} c6 {[%emt 0:00:16]} 4. Qd3 {[%emt 0:01:29]} g6 {[%emt 0:03:22]} 5. Bxf6 {[%emt 0:07:53]} exf6 {[%emt 0:00:15] [#]} 6. f3 $146 {[%emt 0:02:29] D01: Veresov Opening.} ({White should play} 6. Nf3 $15) ({Predecessor:} 6. e4 dxe4 7. Qxe4+ Be7 8. O-O-O f5 9. Qf3 O-O 10. Bc4 a6 11. d5 c5 12. d6 Bxd6 {½-½ (74) Govedarica,R (2395)-Krstic,P (2348) Kragujevac 2010}) 6... Bh6 $17 {[%emt 0:04:21]} 7. e4 {[%emt 0:07:13]} O-O {[%emt 0:02:59]} 8. Nge2 {[%emt 0:05:31]} (8. h4 $17) 8... Re8 {[%emt 0:02:29]} 9. g3 {[%emt 0:02:05]} b6 {[%emt 0:05:38]} 10. Nf4 {[%emt 0:12:01]} Ba6 {[%emt 0:08:03]} 11. Qd2 {[%emt 0:01:55]} f5 {[%emt 0:01:23]} 12. Bxa6 {[%emt 0:01:57]} Nxa6 {[%emt 0:00:09]} 13. e5 {[%emt 0:12:09]} f6 {[%emt 0:01:32]} 14. O-O {[%emt 0:03:40]} fxe5 {[%emt 0:01:13]} 15. dxe5 {[%emt 0:00:04]} Rxe5 {[%emt 0:00:33]} 16. Qd4 {[%emt 0:00:17]} (16. Rae1 $17 Qe7 17. Rxe5 Qxe5 18. Re1) 16... Qe7 {[%emt 0:01:03]} 17. Qa4 {[%emt 0:02:43]} Qb7 {[%emt 0:00:29]} 18. Nd3 {[%emt 0:01:13]} (18. Rae1 {might work better.} Rae8 19. Rxe5 Rxe5 20. Qd4) 18... Nc5 $19 {[%emt 0:05:50]} 19. Nxc5 {[%emt 0:05:31]} Be3+ {[%emt 0:01:03][%cal Bh6e3,Be3c5,Bc5f8][%mdl 32]} ({Wrong is} 19... bxc5 $2 20. Rae1 Rae8 21. Rxe5 Rxe5 22. Nd1 $19) 20. Kh1 {[%emt 0:00:48]} Bxc5 {[%emt 0:00:08]} 21. Rad1 {[%emt 0:02:13]} Rae8 {[%emt 0:01:36][%cal Ba8e8,Be8e3,Be3e2][%mdl 32]} 22. b4 {[%emt 0:00:39]} b5 {[%emt 0:01:05]} 23. Qb3 {[%emt 0:01:11]} Bf8 {[%emt 0:00:21]} 24. Qb1 {[%emt 0:03:46]} Re3 {[%emt 0:01:25]} 25. Rd3 {[%emt 0:00:08]} Qg7 {[%emt 0:00:59] [#] Threatens to win with ...Rxd3.} 26. Rxe3 {[%emt 0:05:24]} (26. Qc1 Rxd3 27. cxd3) 26... Rxe3 {[%emt 0:00:18]} 27. Nd1 {[%emt 0:00:03]} Re2 {[%emt 0:00:16] Hoping for ...Qh6.} 28. c3 {[%emt 0:02:02]} Qh6 {[%emt 0:02:13][%csl Ge2][%cal Rh6h2]} 29. Rf2 {[%emt 0:02:20] [#]} Qd2 {[%emt 0:00:42]} (29... Qh3 $142 $1 {( -> ...Re1+)} 30. Ne3 (30. Nb2 Rxf2) 30... Rxf2) 30. Kg2 {[%emt 0:00:55]} Bg7 {[%emt 0:00:32] Weighted Error Value: White=0.53/Black=0.32} 0-1

[Event "SVK ECo-C Extraliga 2021-22"]
[Site "Slovakia"]
[Date "2022.05.09"]
[Round "8.7"]
[White "Bojtos, Patrik"]
[Black "Federic, Jozef"]
[Result "1/2-1/2"]
[ECO "D02"]
[WhiteElo "1986"]
[BlackElo "2207"]
[Annotator "TA"]
[PlyCount "125"]
[EventDate "2021.10.21"]
[EventType "team-tourn"]
[EventCountry "SVK"]
[SourceTitle "playchess.com"]
[Source "ChessBase"]
[SourceQuality "1"]
[TimeControl "40/5400+30:1800+30"]

{[%evp 17,125,-6,0,-20,-22,-20,22,14,38,41,35,38,87,88,95,109,170,43,48,62,31,12,118,90,168,158,163,52,131,145,147,134,110,128,117,121,111,126,210,191,185,175,162,160,182,147,146,137,145,129,128,90,176,181,237,230,267,275,264,171,298,243,253,247,250,236,234,210,200,159,154,152,131,37,47,52,75,66,60,0,0,0,9,0,58,10,77,9,13,0,0,0,0,0,0,0,0,0,0,0,0,0,0,0,0,0,0,0,0,0]} 1. d4 {[%emt 0:00:21]} d5 {[%emt 0:00:26]} 2. Bf4 {[%emt 0:00:26]} Nf6 {[%emt 0:00:34]} 3. e3 {[%emt 0:00:10]} e6 {[%emt 0:04:06]} 4. Nf3 {[%emt 0:01:18]} Bd6 {[%emt 0:01:13]} 5. Bg3 {[%emt 0:00:09]} O-O {[%emt 0:02:07]} 6. Bd3 {[%emt 0:00:34]} c5 {[%emt 0:01:44]} 7. c3 {[%emt 0:00:10]} b6 {[%emt 0:03:45]} 8. Nbd2 {[%emt 0:00:44]} Bb7 {[%emt 0:02:44]} 9. Ne5 {[%emt 0:00:37]} Nc6 {[%emt 0:04:53][%cal Bb8c6,Bc6e7,Be7f5][%mdl 32]} 10. f4 {[%emt 0:02:12] D02: 1 d4 d5 2 Nf3 sidelines, including 2...Nf6 3 g3 and 2...Nf6 3 Bf4.} Ne7 {[%emt 0:03:02]} 11. Qf3 {[%emt 0:09:57] Against Ne4} a5 {[%emt 0:08:51] [#]} 12. Bh4 $146 {[%emt 0:04:08]} ({Predecessor:} 12. Bf2 Ba6 13. Bc2 b5 14. g4 cxd4 15. exd4 b4 16. Rg1 Nd7 17. Qh3 Ng6 18. Ndf3 bxc3 19. bxc3 {0-1 (36) Pham,P (1957)-Nguyen,L (1936) Ho Chi Minh City 2019}) 12... Nf5 {[%emt 0:08:21]} 13. Bxf6 {[%emt 0:15:48]} gxf6 {[%emt 0:00:16]} (13... Qxf6 14. Nd7 Qh4+ 15. g3 $16) 14. Ng4 {[%emt 0:00:40]} Kh8 {[%emt 0:07:21]} (14... Kg7 $14) 15. Bxf5 $16 {[%emt 0:07:06]} exf5 {[%emt 0:00:05]} 16. Nh6 {[%emt 0:00:13]} Qd7 {[%emt 0:01:43]} (16... cxd4 $16 17. exd4 Re8+ 18. Kf2 Qd7) 17. Qh5 {[%emt 0:00:38]} (17. O-O $1 $18) 17... cxd4 $14 {[%emt 0:10:14]} 18. cxd4 {[%emt 0:15:49]} Ba6 {[%emt 0:11:21]} 19. Qxf5 $40 {[%emt 0:15:47][%cal Rf5f6][%mdl 128] White has some attack.} (19. Nxf5 $2 Bb4 20. Rd1 (20. Qg4 $2 Rg8 $19) (20. a3 $2 Bxd2+ 21. Kxd2 Rg8 $19) 20... Rac8 $19) 19... Qe7 {[%emt 0:01:14]} (19... Qe6 $11 {remains equal.} 20. Kf2 Rae8) 20. Kf2 $1 $16 {[%emt 0:02:19]} Rae8 {[%emt 0:09:51]} (20... Qe6 $16) 21. Ng4 $1 $18 {[%emt 0:01:20]} Kg7 {[%emt 0:04:51][%cal Oh7h5]} 22. Rhe1 {[%emt 0:04:42]} (22. Qxd5 $6 h5 23. Qxh5 Rh8 $11) (22. Qh5 $18) 22... Qe6 {[%emt 0:03:27]} (22... h5 $1 $14) 23. Qh5 $16 {[%emt 0:01:13]} f5 {[%emt 0:00:24]} 24. Qg5+ {[%emt 0:01:03]} (24. Ne5 f6 $11) 24... Qg6 {[%emt 0:00:36]} 25. Nf6 $1 {[%emt 0:02:17][%cal Bg4f6,Bf6h5,Bh5f4,Bf4e2,Be2g3][%mdl 32] The board is on fire.} Rc8 {[%emt 0:01:38]} 26. Rec1 {[%emt 0:02:26] Prevents Rc2. 0x0.002ae76dc7e4dp-1022s more active pieces.} ({Of course not} 26. Nxd5 $6 Qxg5 27. fxg5 Rc2 $11) 26... Qxg5 {[%emt 0:02:44]} 27. fxg5 {[%emt 0:00:02]} Bb4 {[%emt 0:00:58]} (27... h6 $16 {was necessary.}) 28. Nf3 {[%emt 0:01:04]} Rfd8 {[%emt 0:00:12]} 29. a3 {[%emt 0:03:39]} Be7 {[%emt 0:00:14] [#]} 30. Nh5+ {[%emt 0:00:11] Pair of Knights!} ({Don't take} 30. Rxc8 $6 Rxc8 31. Nxd5 Rc2+ 32. Kg1 Bd8 $16) 30... Kf8 {[%emt 0:00:42]} 31. Nf4 {[%emt 0:00:38]} Bc4 {[%emt 0:01:26]} 32. h4 {[%emt 0:03:10]} b5 {[%emt 0:00:42]} 33. Nd2 {[%emt 0:02:02] Hoping for b3.} a4 {[%emt 0:01:04] Prevents b3.} 34. Ne2 {[%emt 0:03:09]} Rb8 {[%emt 0:02:05] [#]} (34... f6 $16 {might work better.}) 35. Ng3 $1 $18 {[%emt 0:00:47]} Bd3 {[%emt 0:02:00]} (35... Re8 $142 36. Nxf5 Bd8) 36. Rc3 {[%emt 0:00:03]} Be4 {[%emt 0:00:04]} 37. Ndxe4 {[%emt 0:00:36]} fxe4 {[%emt 0:00:02]} 38. Nf5 {[%emt 0:00:30] And now Rc7 would win.} Rb7 {[%emt 0:00:51]} (38... Rdc8 $142 39. Rcc1 Rc4) 39. Nxe7 {[%emt 0:00:45]} Kxe7 {[%emt 0:00:10][%mdl 4096] Endgame KRR-KRR} 40. Rac1 {[%emt 0:00:32]} b4 {[%emt 0:00:28]} 41. Rc7+ {[%emt 0:31:03]} Rd7 {[%emt 0:30:25]} 42. Rxd7+ {[%emt 0:00:17]} Kxd7 {[%emt 0:00:04]} 43. axb4 {[%emt 0:00:33]} Rxb4 {[%emt 0:00:06] KR-KR} 44. Rc2 {[%emt 0:00:11]} Rb3 {[%emt 0:01:00]} 45. g4 {[%emt 0:00:00]} ({White should play} 45. Re2 $16) 45... Kd6 $14 {[%emt 0:00:00]} 46. Re2 {[%emt 0:00:00]} Ke6 {[%emt 0:00:00]} 47. Kg3 {[%emt 0:00:00]} Rd3 $1 {[%emt 0:00:00]} 48. Re1 {[%emt 0:00:00]} ({Better is} 48. h5 $1 $14) 48... Rb3 $11 {[%emt 0:00:00]} 49. Re2 {[%emt 0:00:00]} Rd3 $1 {[%emt 0:00:00]} 50. Kf2 {[%emt 0:00:00]} (50. h5 $11 {should be considered.}) 50... Rb3 $14 {[%emt 0:00:00]} 51. h5 {[%emt 0:00:00]} (51. Kg2 $1 $14) 51... Rd3 {[%emt 0:00:00]} (51... f6 $11) 52. Kg3 {[%emt 0:00:00]} (52. Kg2 $16) 52... Rd1 $1 $11 {[%emt 0:00:00] The position is equal.} 53. Rf2 {[%emt 0:00:15] Threatens to win with Rf6+.} Rg1+ {[%emt 0:00:00]} 54. Kh2 {[%emt 0:03:09]} Re1 {[%emt 0:00:00]} 55. Rf6+ {[%emt 0:00:06]} Ke7 {[%emt 0:00:00]} 56. Rh6 {[%emt 0:00:05]} Re2+ $1 {[%emt 0:00:00]} ({Resist} 56... Rxe3 57. Rxh7 Rf3 58. Kg2 $16) 57. Kg1 {[%emt 0:02:14]} Rxb2 {[%emt 0:00:00] ( -> ...a3)} 58. Ra6 $1 {[%emt 0:01:13]} Re2 {[%emt 0:00:00]} 59. Rxa4 {[%emt 0:00:34]} Rxe3 {[%emt 0:00:00]} 60. Ra7+ {[%emt 0:00:25]} Ke6 {[%emt 0:00:00] aiming for ...Rg3+.} 61. Ra6+ {[%emt 0:00:17]} Ke7 {[%emt 0:00:00] White must now prevent ...Rg3+.} 62. Ra7+ {[%emt 0:00:02]} Ke6 {[%emt 0:00:00] Strongly threatening ...Rg3+.} 63. Ra6+ {[%emt 0:00:07] Black defended with fortune.  Weighted Error Value: White=0.19 (very precise) /Black=0.19 (very precise)} 1/2-1/2

[Event "SVK ECo-C Extraliga 2021-22"]
[Site "Slovakia"]
[Date "2022.05.08"]
[Round "8.7"]
[White "Pandula, Blazej"]
[Black "Petran, Peter"]
[Result "0-1"]
[ECO "A37"]
[WhiteElo "1590"]
[BlackElo "2240"]
[Annotator "TA"]
[PlyCount "122"]
[EventDate "2021.10.21"]
[EventType "team-tourn"]
[EventCountry "SVK"]
[SourceTitle "playchess.com"]
[Source "ChessBase"]
[SourceQuality "1"]
[TimeControl "40/5400+30:1800+30"]

{[%evp 12,122,27,18,37,7,6,4,38,43,61,50,53,52,55,50,54,6,8,-5,17,0,16,5,0,0,0,7,0,6,10,0,0,8,32,7,42,21,35,-3,26,-13,-13,-16,-18,-17,-12,-24,-3,-3,-3,-27,0,-58,-58,-59,-59,-60,-58,-60,-43,-39,-22,-54,-47,-84,-84,-83,-72,-72,-72,-86,-73,-86,-72,-80,-73,-73,-56,-54,-35,-241,-235,-266,-271,-262,-271,-372,-366,-331,-228,-456,-478,-466,-465,-414,-186,-183,-14,-326,-312,-314,-286,-423,-433,-370,-333,-635,-632,-29974,-583,-29989,-29990]} 1. c4 {[%emt 0:00:04]} g6 {[%emt 0:00:09]} 2. Nc3 {[%emt 0:01:28]} Bg7 {[%emt 0:00:08]} 3. Nf3 {[%emt 0:00:25]} c5 {[%emt 0:00:28]} 4. g3 {[%emt 0:00:09]} Nc6 {[%emt 0:00:13]} 5. Bg2 {[%emt 0:00:13]} d6 {[%emt 0:00:38]} 6. O-O {[%emt 0:00:12]} Bd7 {[%emt 0:01:36] 6...Bf5 is a critical line.} 7. e3 {[%emt 0:03:26][%cal Be2e3,Be3d4,Bd4d5][%mdl 32]} e5 {[%emt 0:01:08] [#] Prevents d4. A37: Symmetrical English vs ...g6: 4 Bg2 Bg7 5 Nf3.} 8. b3 $146 {[%emt 0:07:12]} ({Predecessor:} 8. d4 Nge7 9. Nb5 O-O 10. d5 Na5 11. Nxd6 Bg4 12. Ne4 Nxc4 13. Nxc5 Qc7 14. Ne4 Rfd8 15. b3 {1-0 (63) Ribeiro,M (2195)-Springis,J (1817) Tornelo INT 2021}) 8... Nge7 {[%emt 0:00:25]} 9. Bb2 {[%emt 0:01:50][%cal Od2d4]} a6 {[%emt 0:01:34] The position is equal.} 10. d4 {[%emt 0:09:19]} cxd4 {[%emt 0:08:03]} 11. exd4 {[%emt 0:10:54]} O-O {[%emt 0:00:32]} 12. d5 {[%emt 0:02:59]} Na5 {[%emt 0:00:43][%cal Bc6a5,Ba5b7,Bb7c5][%mdl 32]} 13. Ne4 {[%emt 0:11:51]} Bf5 {[%emt 0:00:33]} 14. Nh4 {[%emt 0:02:19]} (14. Nfd2 $14 b5 15. Qe2) 14... Bxe4 $11 {[%emt 0:04:18]} 15. Bxe4 {[%emt 0:23:56]} Rc8 {[%emt 0:00:07]} 16. a4 {[%emt 0:08:08]} (16. f4 {keeps more tension.} f5 17. Bg2 Qb6+ 18. Rf2) 16... b6 {[%emt 0:00:36]} 17. Ng2 {[%emt 0:00:31]} Nb7 {[%emt 0:00:20]} 18. Qd2 {[%emt 0:00:39]} f5 {[%emt 0:02:00]} 19. Bc2 {[%emt 0:00:12]} a5 {[%emt 0:01:42]} 20. f3 {[%emt 0:01:25]} Nc5 {[%emt 0:00:27]} 21. Rab1 {[%emt 0:03:15]} Qd7 {[%emt 0:01:30][%cal Of5f4]} 22. Ba3 {[%emt 0:00:27]} Qc7 {[%emt 0:01:45]} 23. Rf2 {[%emt 0:00:42]} h5 {[%emt 0:01:00]} 24. Bb2 {[%emt 0:01:45]} Kh7 {[%emt 0:01:46]} 25. h4 {[%emt 0:00:47]} Ng8 {[%emt 0:00:37]} 26. Kh2 {[%emt 0:01:52]} (26. g4 $5) 26... Nf6 {[%emt 0:00:12]} 27. Rg1 {[%emt 0:00:52]} Rce8 {[%emt 0:02:57]} 28. Re2 {[%emt 0:01:49]} Bh6 {[%emt 0:01:45]} 29. Qd1 {[%emt 0:02:04]} Qe7 {[%emt 0:04:44]} 30. Rge1 {[%emt 0:01:23]} Qd8 {[%emt 0:01:08]} 31. Kh3 {[%emt 0:00:30]} Kg8 {[%emt 0:10:35]} 32. Bc1 {[%emt 0:00:44]} (32. Nf4 $11 Kh7 33. Nd3) 32... Bxc1 $15 {[%emt 0:01:02]} 33. Qxc1 {[%emt 0:00:11]} Kg7 {[%emt 0:01:32]} 34. Qg5 {[%emt 0:00:23] [#] Hoping for Bxf5.} Qd7 {[%emt 0:00:35][%cal Oc5e4] Strongly threatening ...Nce4!} 35. Kh2 {[%emt 0:00:39]} Nh7 {[%emt 0:00:37] Pair of Knights!} 36. Qd2 {[%emt 0:00:24]} Qf7 {[%emt 0:00:31]} 37. Qc3 {[%emt 0:00:57]} Nf6 {[%emt 0:01:22]} 38. b4 {[%emt 0:00:54]} axb4 {[%emt 0:00:20]} 39. Qxb4 {[%emt 0:00:14]} Qc7 {[%emt 0:00:46]} 40. Ra1 {[%emt 0:01:05]} Ra8 {[%emt 0:00:11]} 41. Bb1 {[%emt 0:30:21]} Ra6 {[%emt 0:30:33]} 42. Rea2 {[%emt 0:00:32]} Rfa8 {[%emt 0:00:10] Black is more active.} 43. Bc2 {[%emt 0:00:18]} Qe7 {[%emt 0:01:46]} 44. Qd2 {[%emt 0:00:20]} Nh7 {[%emt 0:04:50]} 45. Qc3 {[%emt 0:00:19]} Qf6 {[%emt 0:00:39]} 46. a5 $2 {[%emt 0:00:39]} (46. Ra3 $15) 46... e4 $19 {[%emt 0:01:06]} 47. Qxf6+ {[%emt 0:02:17]} Nxf6 {[%emt 0:00:08]} 48. fxe4 {[%emt 0:00:10]} fxe4 {[%emt 0:00:33][%cal Ra6a5]} 49. Nf4 {[%emt 0:00:20]} Rxa5 {[%emt 0:01:11]} 50. Rxa5 {[%emt 0:00:30]} bxa5 {[%emt 0:00:16][%cal Bb6a5,Ba5a4][%mdl 32]} 51. Rb1 $2 {[%emt 0:00:27]} (51. Ba4 {was called for.}) 51... a4 {[%emt 0:04:24] [#] And now ...Ng4+ would win.} 52. Ne6+ {[%emt 0:00:21]} Nxe6 {[%emt 0:00:15]} 53. dxe6 {[%emt 0:00:11][%mdl 4096] Endgame KRB-KRN} Ng4+ {[%emt 0:00:25]} (53... a3 $142 54. Bb3 a2) 54. Kg1 {[%emt 0:00:18]} Re8 $2 {[%emt 0:02:05]} ({Better is} 54... a3 $19 {Threatens to win with ...a2.} 55. Bxe4 Ra6) 55. Rb7+ $2 {[%emt 0:00:41][%mdl 8192]} (55. Bxa4 $11 {and White has nothing to worry.} Re7 56. Bd7) 55... Kf6 {[%emt 0:00:20]} 56. Bxa4 {[%emt 0:01:03]} Rxe6 {[%emt 0:00:09] White must now prevent ...Ke5.} 57. Kf1 {[%emt 0:01:13]} (57. Bc6 $142) 57... Ke5 {[%emt 0:01:41]} 58. Ke2 {[%emt 0:00:48]} Kd4 {[%emt 0:00:19]} 59. Bb3 $2 {[%emt 0:00:23]} (59. Rb4 Ne3 60. Bd7) 59... Rf6 {[%emt 0:00:10]} 60. Rd7 {[%emt 0:00:16]} Kc3 {[%emt 0:01:01]} (60... Ne5 $142 61. Ra7 Nd3 62. Ra2 Nc1+ 63. Ke1 Ke3 64. Kd1 Rf1+ 65. Kc2 Nxa2 66. Bxa2 Rf2+ 67. Kc3 Rxa2 68. g4 hxg4 69. Kb3 Ra8 70. c5 g3 71. Kb4 g2 72. Kc4 g1=Q 73. cxd6 Qf1+ 74. Kd5 Qb5+ 75. Ke6 Rf8 76. d7 Qc6+ 77. Ke7 Qf6#) 61. Ba2 {[%emt 0:00:39]} Rf2+ {[%emt 0:00:08] Weighted Error Value: White=0.70/Black=0.34} 0-1